fUST/lending_fUST_20251023
["ID","MTS","AMOUNT","RATE_DAILY","PERIOD"]
[392148284,1761210641074,-2500.0,0.00026164,2]
[392148286,1761210641083,-2500.0,0.00026164,2]
[392148288,1761210641092,-2500.0,0.00026164,2]
[392148290,1761210641101,-1000.0,0.00026179,2]
[392148292,1761210641111,-1000.0,0.00026179,2]
[392148294,1761210641120,-1000.0,0.00026179,2]
[392148295,1761210641128,-1000.0,0.00026179,2]
[392148296,1761210641137,-1000.0,0.00026179,2]
[392148297,1761210641145,-1000.0,0.00026179,2]
[392148298,1761210641154,-1000.0,0.00026179,2]
[392148299,1761210641162,-1000.0,0.00026179,2]
[392148300,1761210641171,-1000.0,0.00026179,2]
[392148301,1761210641179,-1000.0,0.00026179,2]
[392148302,1761210641188,-1000.0,0.00026179,2]
[392148303,1761210641197,-1000.0,0.00026179,2]
[392148304,1761210641205,-1000.0,0.00026179,2]
[392148305,1761210641213,-1000.0,0.00026179,2]
[392148306,1761210641221,-1000.0,0.00026179,2]
[392148307,1761210641230,-1000.0,0.00026179,2]
[392148308,1761210641239,-1000.0,0.00026179,2]
[392148309,1761210641252,-1000.0,0.00026179,2]
[392148310,1761210641260,-1000.0,0.00026179,2]
[392148312,1761210641270,-1000.0,0.00026179,2]
[392148314,1761210641280,-213.99539696,0.00026181,2]
[392148316,1761210641289,-384.80652281,0.00026181,2]
[392148318,1761210641299,-151.0,0.000263,18]
[392148320,1761210641307,-3679.60476344,0.00026303,2]
[392148322,1761210641316,-1002.88994788,0.00026516,2]
[392148324,1761210641326,-500.0,0.00026516,2]
[392148326,1761210641335,-740.83846751,0.00026516,2]
[392148328,1761210641344,-216.94131255,0.00026516,2]
[392148330,1761210641353,-360.0,0.00026567,2]
[392148332,1761210641362,-151.0,0.000266,14]
[392148334,1761210641371,-335.966346,0.00026676,2]
[392148336,1761210641380,-290.12740955,0.00026707,2]
[392148337,1761210641390,-3000.0,0.00026712,2]
[392148340,1761210641399,-3000.0,0.00026712,2]
[392148342,1761210641409,-3000.0,0.00026712,2]
[392148344,1761210641419,-3000.0,0.00026712,2]
[392148345,1761210641428,-151.0,0.00026747,2]
[392148347,1761210641438,-151.0,0.00026747,2]
[392148350,1761210641447,-500.0,0.00026747,2]
[392148351,1761210641456,-151.0,0.00026747,2]
[392148352,1761210641465,-151.0,0.00026747,2]
[392148358,1761210641544,-202.02370346,0.00026747,2]
[392148360,1761210641553,-151.0,0.00026747,2]
[392148362,1761210641562,-500.0,0.00026747,2]
[392148363,1761210641572,-207.60724146,0.00026747,2]
[392148364,1761210641581,-152.0600537,0.00026747,2]
[392148365,1761210641590,-500.0,0.00026747,2]
[392148367,1761210641599,-151.0,0.00026747,2]
[392148369,1761210641609,-285.13277577,0.00026747,2]
[392148370,1761210641618,-151.0,0.00026747,2]
[392148372,1761210641627,-151.0,0.00026747,2]
[392148374,1761210641637,-151.0,0.00026747,2]
[392148375,1761210641646,-500.0,0.00026747,2]
[392148376,1761210641655,-151.0,0.00026747,2]
[392148377,1761210641666,-500.0,0.00026747,2]
[392148378,1761210641675,-151.46458228,0.00026747,2]
[392148379,1761210641685,-151.0,0.00026747,2]
[392148380,1761210641694,-278.07647929,0.00026747,2]
[392148381,1761210641703,-151.35141846,0.00026747,2]
[392148382,1761210641712,-151.0,0.00026747,2]
[392148384,1761210641720,-282.39684521,0.00026747,2]
[392148386,1761210641730,-151.0,0.00026802,2]
[392148388,1761210641739,-181.85491574,0.00026802,2]
[392148390,1761210641748,-543.53490704,0.00026802,2]
[392148392,1761210641757,-153.30956163,0.00026802,2]
[392148394,1761210641766,-187.77195116,0.00026802,2]
[392148396,1761210641775,-151.0,0.00026802,2]
[392148397,1761210641784,-564.78653592,0.00026802,2]
[392148399,1761210641794,-500.0,0.00026802,2]
[392148401,1761210641803,-151.0,0.00026802,2]
[392148403,1761210641811,-152.94337327,0.00026802,2]
[392148405,1761210641820,-153.08173474,0.00026802,2]
[392148406,1761210641829,-500.0,0.00026802,2]
[392148407,1761210641837,-151.0,0.00026802,2]
[392148408,1761210641847,-500.0,0.00026802,2]
[392148409,1761210641856,-151.0,0.00026802,2]
[392148410,1761210641865,-202.16351752,0.00026857,2]
[392148411,1761210641876,-151.0,0.00026857,2]
[392148412,1761210641885,-500.0,0.00026857,2]
[392148413,1761210641893,-151.0,0.00026857,2]
[392148414,1761210641903,-500.0,0.00026857,2]
[392148415,1761210641912,-201.74549163,0.00026857,2]
[392148416,1761210641923,-500.0,0.00026857,2]
[392148417,1761210641933,-199.33539142,0.00026857,2]
[392148418,1761210641942,-151.0,0.000269,19]
[392148419,1761210641951,-151.0,0.00026911,2]
[392148420,1761210641961,-260.62527282,0.00026911,2]
[392148421,1761210641970,-151.0,0.00026911,2]
[392148422,1761210641979,-500.0,0.00026911,2]
[392148423,1761210641988,-490.56667443,0.00026911,2]
[392148424,1761210641997,-151.0,0.00026966,2]
[392148425,1761210642007,-151.0,0.00026966,2]
[392148426,1761210642017,-500.0,0.00026966,2]
[392148427,1761210642026,-500.0,0.00026973,2]
[392148428,1761210642035,-201.8,0.00027,2]
[392148429,1761210642044,-10452.79524683,0.00027,3]
[392148430,1761210642053,-378.65,0.00027006,2]
[392148431,1761210642062,-3679.60476344,0.00027014,2]
[392148432,1761210642071,-205.16142218,0.00027021,2]
[392148433,1761210642081,-202.92387496,0.00027021,2]
[392148434,1761210642090,-386.01082697,0.00027021,2]
[392148435,1761210642099,-720.0,0.00027085,30]
[392148436,1761210642108,-608.404462,0.000271,2]
[392148437,1761210642118,-346.246824,0.000271,2]
[392148438,1761210642127,-460.0,0.00027115,2]
[392148439,1761210642135,-3500.0,0.0002726,2]
[392148440,1761210642145,-3500.0,0.0002726,2]
[392148441,1761210642154,-3500.0,0.0002726,2]
[392148442,1761210642165,-3500.0,0.0002726,2]
[392148443,1761210642174,-834.38373556,0.00027285,2]
[392148444,1761210642184,-151.0,0.000273,19]
[392148445,1761210642194,-520.53571904,0.00027397,2]
[392148446,1761210642204,-520.53571904,0.00027397,2]
[392148447,1761210642214,-520.53571904,0.00027397,2]
[392148448,1761210642223,-520.53571904,0.00027397,2]
[392148449,1761210642233,-520.53571904,0.00027397,2]
[392148450,1761210642243,-520.53571904,0.00027397,2]
[392148451,1761210642253,-520.53571904,0.00027397,2]
[392148452,1761210642262,-520.53571904,0.00027397,2]
[392148453,1761210642271,-520.53571904,0.00027397,2]
[392148454,1761210642280,-520.53571904,0.00027397,2]
[392148455,1761210642290,-520.53571904,0.00027397,2]
[392148456,1761210642299,-520.53571904,0.00027397,2]
[392148457,1761210642308,-520.53571904,0.00027397,2]
[392148458,1761210642318,-520.53571904,0.00027397,2]
[392148459,1761210642328,-520.53571904,0.00027397,2]
[392148460,1761210642337,-520.53571904,0.00027397,2]
[392148461,1761210642347,-520.53571904,0.00027397,2]
[392148462,1761210642357,-520.53571904,0.00027397,2]
[392148463,1761210642366,-520.53571904,0.00027397,2]
[392148464,1761210642375,-520.53571904,0.00027397,2]
[392148465,1761210642385,-520.53571904,0.00027397,2]
[392148466,1761210642394,-520.53571904,0.00027397,2]
[392148467,1761210642403,-520.53571904,0.00027397,2]
[392148468,1761210642413,-520.53571904,0.00027397,2]
[392148469,1761210642422,-520.53571904,0.00027397,2]
[392148470,1761210642432,-520.53571904,0.00027397,2]
[392148471,1761210642442,-520.53571904,0.00027397,2]
[392148472,1761210642451,-520.53571904,0.00027397,2]
[392148473,1761210642461,-520.53571904,0.00027397,2]
[392148474,1761210642471,-520.53571904,0.00027397,2]
[392148475,1761210642480,-520.53571904,0.00027397,2]
[392148476,1761210642490,-520.53571904,0.00027397,2]
[392148477,1761210642499,-520.53571904,0.00027397,2]
[392148478,1761210642508,-520.53571904,0.00027397,2]
[392148479,1761210642518,-520.53571904,0.00027397,2]
[392148480,1761210642528,-520.53571904,0.00027397,2]
[392148481,1761210642537,-520.53571904,0.00027397,2]
[392148482,1761210642547,-520.53571904,0.00027397,2]
[392148483,1761210642556,-520.53571904,0.00027397,2]
[392148484,1761210642565,-520.53571904,0.00027397,2]
[392148485,1761210642574,-520.53571904,0.00027397,2]
[392148486,1761210642583,-520.53571904,0.00027397,2]
[392148487,1761210642593,-520.53571904,0.00027397,2]
[392148488,1761210642603,-520.53571904,0.00027397,2]
[392148489,1761210642612,-520.53571904,0.00027397,2]
[392148490,1761210642621,-520.53571904,0.00027397,2]
[392148491,1761210642631,-520.53571904,0.00027397,2]
[392148492,1761210642641,-520.53571904,0.00027397,2]
[392148493,1761210642650,-520.53571904,0.00027397,2]
[392148494,1761210642659,-520.53571904,0.00027397,2]
[392148495,1761210642668,-520.53571904,0.00027397,2]
[392148496,1761210642678,-520.53571904,0.00027397,2]
[392148497,1761210642687,-520.53571904,0.00027397,2]
[392148498,1761210642697,-520.53571904,0.00027397,2]
[392148499,1761210642706,-520.53571904,0.00027397,2]
[392148500,1761210642715,-520.53571904,0.00027397,2]
[392148501,1761210642725,-520.53571904,0.00027397,2]
[392148502,1761210642734,-520.53571904,0.00027397,2]
[392148503,1761210642745,-520.53571904,0.00027397,2]
[392148504,1761210642755,-520.53571904,0.00027397,2]
[392148505,1761210642765,-520.53571904,0.00027397,2]
[392148506,1761210642774,-520.53571904,0.00027397,2]
[392148507,1761210642783,-520.53571904,0.00027397,2]
[392148508,1761210642793,-500.0,0.00027397,5]
[392148509,1761210642802,-2038.05,0.000274,2]
[392148510,1761210642811,-1070.16,0.000274,7]
[392148511,1761210642820,-608.404462,0.00027462,2]
[392148512,1761210642830,-346.246824,0.00027462,2]
[392148513,1761210642839,-152.61278046,0.00027464,5]
[392148514,1761210642848,-165.52694812,0.00027464,5]
[392148515,1761210642857,-1120.65872946,0.00027521,2]
[392148516,1761210642866,-19980.11,0.000276,7]
[392148517,1761210642943,-151.0,0.000276,17]
[392148518,1761210642952,-403.24192968,0.000276,7]
[392148519,1761210642961,-560.0,0.00027663,2]
[392148520,1761210642971,-199.0,0.00027671,7]
[392148521,1761210642980,-487.43866209,0.00027672,2]
[392148522,1761210642990,-3679.60476344,0.00027725,2]
[392148523,1761210642999,-560.9032153,0.00027725,2]
[392148524,1761210643008,-3095.87745763,0.00027808,5]
[392148525,1761210643019,-4000.0,0.00027808,5]
[392148526,1761210643029,-1161.34815162,0.00027808,5]
[392148527,1761210643039,-4000.0,0.00027808,5]
[392148528,1761210643050,-608.404462,0.00027825,2]
[392148529,1761210643059,-346.246824,0.00027825,2]
[392148530,1761210643069,-2351.0,0.00027865,2]
[392148531,1761210643079,-587.0,0.00027868,2]
[392148532,1761210643091,-491.0,0.00027868,2]
[392148533,1761210643101,-460.0,0.00027868,2]
[392148534,1761210643110,-151.0,0.000279,13]
[392148535,1761210643119,-1000.0,0.000279,2]
[392148536,1761210643128,-1000.0,0.000279,2]
[392148537,1761210643138,-199.0,0.00027945,8]
[392148538,1761210643148,-501.47838452,0.00027945,5]
[392148540,1761210643157,-425.98,0.0002797,2]
[392148541,1761210643167,-2351.0,0.00028113,2]
[392148542,1761210643176,-16638.5213057,0.00028114,2]
[392148543,1761210643185,-43890.9259885,0.00028114,2]
[392148544,1761210643194,-608.404462,0.00028187,2]
[392148545,1761210643204,-346.246824,0.00028187,2]
[392148546,1761210643213,-3500.0,0.000282,2]
[392148547,1761210643223,-660.0,0.00028211,2]
[392148548,1761210643232,-666.66666667,0.00028217,2]
[392148549,1761210643247,-666.66666667,0.00028217,2]
[392148550,1761210643258,-199.0,0.00028219,9]
[392148551,1761210643268,-315.13894263,0.00028284,2]
[392148552,1761210643277,-666.66666667,0.00028297,2]
[392148553,1761210643287,-151.0,0.000283,10]
[392148554,1761210643297,-3500.0,0.00028356,5]
[392148556,1761210643307,-2714.0,0.00028356,5]
[392148558,1761210643317,-666.66666667,0.00028387,10]
[392148560,1761210643327,-666.66666667,0.00028387,10]
[392148562,1761210643337,-666.66666667,0.00028387,10]
[392148563,1761210643346,-4000.0,0.000284,2]
[392148564,1761210643356,-315.13894263,0.00028454,10]
[392148565,1761210643365,-666.66666667,0.00028468,10]
[392148566,1761210643375,-666.66666667,0.00028468,10]
[392148567,1761210643384,-666.66666667,0.00028468,10]
[392148568,1761210643393,-199.0,0.00028493,10]
[392148569,1761210643403,-4000.0,0.0002854,2]
[392148570,1761210643413,-608.404462,0.0002855,2]
[392148571,1761210643434,-346.246824,0.0002855,2]
[392148572,1761210643444,-666.66666667,0.00028556,18]
[392148573,1761210643454,-666.66666667,0.00028556,18]
[392148574,1761210643464,-666.66666667,0.00028556,18]
[392148575,1761210643474,-151.0,0.000286,20]
[392148576,1761210643484,-85325.56584293,0.00028611,2]
[392148577,1761210643507,-3658.73903805,0.00028611,2]
[392148581,1761210643778,-464.996769,0.0002398,10]
[392148582,1761210643789,-302.0,0.0002398,10]
[392148601,1761210646677,-313.643231,0.0002398,10]
[392148602,1761210646687,-35.356769,0.00025091,2]
[392148608,1761210647670,-464.643231,0.00025091,2]
[392148609,1761210647680,-500.0,0.00025365,2]
[392148610,1761210647689,-500.0,0.00025639,2]
[392148611,1761210647699,-500.0,0.00025913,2]
[392148612,1761210647707,-500.0,0.00026187,2]
[392148613,1761210647717,-500.0,0.00026461,2]
[392148614,1761210647726,-500.0,0.00026735,2]
[392148615,1761210647735,-500.0,0.00027009,2]
[392148616,1761210647744,-500.0,0.00027283,2]
[392148617,1761210647753,-485.3662526,0.00027557,2]
[392148618,1761210647763,-1495049.9905164,0.00028611,2]
[392148621,1761210680794,200.0,0.00036132,120]
[392148631,1761210924881,10000.01,0.0002367,2]
[392148632,1761210924908,10000.01,0.0002367,2]
[392148633,1761210924934,10000.01,0.0002367,2]
[392148634,1761210924963,10000.01,0.0002367,2]
[392148635,1761210981768,200.0,0.00036121,120]
[392148636,1761211046527,2000.0,0.00029,120]
[392148658,1761211283582,200.0,0.00036069,120]
[392148670,1761211580427,200.0,0.00036072,120]
[392149373,1761211881355,200.0,0.00036073,120]
[392149376,1761211934813,196.970591,0.00030137,120]
[392149377,1761211938744,160.73417,0.0002525,120]
[392149378,1761211964156,-500000.0,0.00036074,20]
[392149379,1761211969822,-3102163.091058,0.00036074,20]
[392149385,1761212101703,398.11739162,0.00023628,2]
[392149386,1761212103697,621.43636599,0.00023628,2]
[392149388,1761212181395,200.0,0.00036074,120]
[392149389,1761212282295,170.86201625,0.00023588,5]
[392149390,1761212286698,157.34573935,0.00023588,5]
[392149391,1761212287692,156.0,0.00024,120]
[392149392,1761212289065,156.0,0.000281,120]
[392149400,1761212318474,4352.09693118,0.00023673,2]
[392149405,1761212354054,181.49,0.00022096,2]
[392149406,1761212354489,241.98,0.00023057,2]
[392149407,1761212359073,155.56,0.00015501,30]
[392149408,1761212359512,181.49,0.00016098,30]
[392149409,1761212359943,207.41,0.00016694,30]
[392149410,1761212403385,221.61391499,0.00030136,120]
[392149411,1761212428915,192.71,0.00023054,2]
[392149412,1761212452907,181.0,0.00023,7]
[392149413,1761212463362,2118.46983766,0.00023673,2]
[392149414,1761212464110,2000.0,0.00036034,30]
[392149415,1761212480286,200.0,0.00036034,120]
[392149417,1761212488303,285.571394,0.00013699,2]
[392149418,1761212488497,285.571394,0.00020187,2]
[392149420,1761212497918,2000.0,0.00036034,30]
[392149423,1761212500874,156.69,0.00021125,2]
[392149424,1761212501268,235.03,0.00022086,2]
[392149425,1761212501698,313.38,0.00023046,2]
[392149426,1761212506750,167.88,0.00014501,30]
[392149427,1761212507175,201.46,0.00015081,30]
[392149428,1761212507683,235.03,0.00015661,30]
[392149429,1761212508105,268.61,0.00016241,30]
[392149430,1761212508505,302.08581556,0.00016821,30]
[392149431,1761212532015,200.0,0.00036034,30]
[392149432,1761212577137,161.37,0.00021125,2]
[392149433,1761212577576,242.06,0.00022085,2]
[392149434,1761212577987,322.74,0.00023045,2]
[392149435,1761212582605,172.9,0.00014492,30]
[392149436,1761212583057,207.48,0.00015072,30]
[392149437,1761212583493,242.06,0.00015652,30]
[392149438,1761212583893,276.64,0.00016231,30]
[392149439,1761212584327,311.21,0.00016811,30]
[392149445,1761212652128,168.12,0.00022278,2]
[392149446,1761212652633,224.16,0.00023247,2]
[392149447,1761212657649,168.12,0.00015759,30]
[392149448,1761212705174,286.99366557,0.00023608,2]
[392149449,1761212707122,516.58859803,0.00023608,2]
[392149450,1761212708919,918.37972984,0.00023608,2]
[392149451,1761212710992,1030.40956534,0.00023608,2]
[392149452,1761212711013,404.55876253,0.00023608,2]
[392149453,1761212713009,2064.28803774,0.00023608,2]
[392149454,1761212725735,2006.95680989,0.00023673,2]
[392149455,1761212726561,195.63,0.00023238,2]
[392149456,1761212733804,5000.0,0.00023673,2]
[392149457,1761212742402,1440.95834715,0.00023673,2]
[392149467,1761212780092,200.0,0.00036035,120]
[392149468,1761212800598,185.67,0.00023175,2]
[392149476,1761212839142,200.35240898,0.00023601,2]
[392149477,1761212841065,228.97418169,0.00023601,2]
[392149478,1761212842954,357.41438673,0.00023601,2]
[392149483,1761212874701,176.22,0.00023032,2]
[392149500,1761212947935,167.25,0.00023032,2]
[392149528,1761213002256,152.61278046,0.00023547,5]
[392149532,1761213004831,165.52694812,0.00023547,5]
[392149537,1761213019728,158.73,0.00023046,2]
[392149586,1761213032006,-198.41,0.00024006,2]
[392149588,1761213032015,-349.04963918,0.00024024,2]
[392149590,1761213032025,-57.17836082,0.000241,2]
[392149592,1761213032039,-442.82163918,0.000241,2]
[392149594,1761213032048,-200.0,0.00024103,2]
[392149596,1761213032058,-694.113878,0.00024263,2]
[392149599,1761213032066,-475.69263046,0.00024304,2]
[392149796,1761213034164,230.43143146,0.00030136,120]
[392149966,1761213037711,-462.95122574,0.00024304,2]
[392149968,1761213037720,-212.09057482,0.00024334,2]
[392149970,1761213037730,-300.0,0.00024847,2]
[392149972,1761213037739,-300.0,0.00024847,2]
[392149974,1761213037748,-300.0,0.00024847,2]
[392149976,1761213037757,-1200.0,0.00024847,2]
[392149978,1761213037766,-1200.0,0.00024848,2]
[392149990,1761213037875,-1407.7509209,0.00024868,2]
[392149993,1761213037896,-950.64155774,0.00024868,2]
[392149996,1761213037905,-238.1,0.00024966,2]
[392149998,1761213037914,-204.37103656,0.00025022,2]
[392150000,1761213037923,-208.30707195,0.00025022,2]
[392150002,1761213037932,-228.40513146,0.00025022,2]
[392150004,1761213037944,-146.17264531,0.00025022,2]
[392150006,1761213037953,-500.0,0.00025125,2]
[392150008,1761213037962,-500.0,0.00025125,2]
[392150010,1761213037971,-239.67,0.0002515,2]
[392150012,1761213037981,-160.73417,0.0002525,2]
[392150015,1761213037991,-160.73417,0.0002525,8]
[392150017,1761213038001,-160.73417,0.0002525,15]
[392150019,1761213038011,-160.73417,0.0002525,22]
[392150021,1761213038021,-160.73417,0.0002525,29]
[392150023,1761213038031,-160.73417,0.0002525,36]
[392150025,1761213038041,-160.73417,0.0002525,43]
[392150027,1761213038052,-54.19336698,0.0002525,50]
[392150029,1761213038063,-106.54080302,0.0002525,50]
[392150031,1761213038073,-160.73417,0.0002525,57]
[392150033,1761213038083,-160.73417,0.0002525,64]
[392150035,1761213038093,-160.73417,0.0002525,71]
[392150037,1761213038103,-160.73417,0.0002525,78]
[392150039,1761213038112,-160.73417,0.0002525,85]
[392150041,1761213038122,-160.73417,0.0002525,92]
[392150043,1761213038132,-160.73417,0.0002525,99]
[392150046,1761213038142,-160.73417,0.0002525,106]
[392150047,1761213038153,-160.73417,0.0002525,113]
[392150049,1761213038162,-219.06543645,0.00025385,2]
[392150052,1761213038174,-280.93456355,0.00025385,2]
[392150054,1761213038183,-70.9837062,0.00025385,2]
[392150057,1761213038199,-252.92799145,0.00025385,2]
[392150528,1761213080943,200.0,0.00036036,120]
[392150531,1761213121505,200.4,0.00023672,2]
[392150533,1761213237676,948.0,0.00030136,120]
[392150535,1761213254376,162.21380146,0.00023,3]
[392150536,1761213329949,9701.0,0.00023673,2]
[392150537,1761213381678,200.0,0.00036037,120]
[392150538,1761213488131,136.79619854,0.0002227,2]
[392150539,1761213488154,4863.20380146,0.0002227,2]
[392150540,1761213544801,201.277409,0.0003013,120]
[392150545,1761213681572,200.0,0.00036038,120]
[392150546,1761213785831,190.14,0.00023092,2]
[392150549,1761213853874,10000.01,0.00023288,30]
[392150550,1761213853895,10000.01,0.00023288,30]
[392150551,1761213853915,6462.8980862,0.00023288,30]
[392150552,1761213859683,180.46,0.00023496,2]
[392150553,1761213932344,195.89,0.00022641,2]
[392150555,1761213945596,-261.19,0.00023626,2]
[392150556,1761213980801,200.0,0.00036039,120]
[392150557,1761214007207,178.44,0.00022531,2]
[392150558,1761214007641,237.92,0.00023511,2]
[392150561,1761214084145,162.55,0.00022812,2]
[392150567,1761214158194,156.34,0.00022592,2]
[392150568,1761214158626,208.45,0.00023574,2]
[392150741,1761214184127,2000.0,0.00036066,45]
[392150806,1761214233191,199.25,0.00023568,2]
[392150835,1761214237972,-300.0,0.00023876,2]
[392150836,1761214237981,-1200.0,0.00023876,2]
[392150838,1761214237990,-300.0,0.00023876,2]
[392150840,1761214238000,-1200.0,0.00023877,2]
[392150842,1761214238010,-359.72602635,0.00023878,2]
[392150845,1761214238020,-300.0,0.00023878,2]
[392150847,1761214238029,-300.0,0.00023878,2]
[392150849,1761214238039,-300.0,0.00023878,2]
[392150851,1761214238049,-1005.27,0.00023879,2]
[392150853,1761214238058,-1005.27,0.00023879,2]
[392150856,1761214238067,-39460.37,0.00023879,2]
[392150859,1761214238077,-636.20587989,0.00023977,2]
[392150861,1761214238089,-320.30066076,0.00023977,2]
[392150862,1761214238099,-500.0,0.00023977,2]
[392150864,1761214238108,-500.0,0.00023977,2]
[392150878,1761214238223,-648.02228581,0.00023977,2]
[392150880,1761214238237,-1651.62,0.0002398,10]
[392150882,1761214238248,-95275.1671321,0.0002399,2]
[392150884,1761214238258,-417.15472785,0.00024,3]
[392150886,1761214238267,-262.1,0.00024229,2]
[392150888,1761214238276,-666.0,0.00024336,2]
[392150890,1761214238286,-249.07,0.0002455,2]
[392150892,1761214238296,-362.82,0.00024739,3]
[392150894,1761214238306,-725.65,0.00024749,3]
[392150896,1761214238315,-320.19982159,0.00024759,2]
[392150898,1761214238325,-482.23423407,0.0002479,2]
[392150900,1761214238334,-4170.21873192,0.0002479,2]
[392150902,1761214238343,-181.41,0.00024806,3]
[392150904,1761214238353,-544.28,0.00024806,3]
[392150906,1761214238364,-500.0,0.00024873,2]
[392150908,1761214238373,-500.0,0.00024873,2]
[392150909,1761214238383,-500.0,0.00024873,2]
[392150911,1761214238393,-500.0,0.00024873,2]
[392150913,1761214238402,-500.0,0.00024873,2]
[392150915,1761214238412,-500.0,0.00024873,2]
[392150917,1761214238421,-500.0,0.00024873,2]
[392150919,1761214238430,-500.0,0.00024873,2]
[392150921,1761214238439,-500.0,0.00024873,2]
[392150923,1761214238448,-500.0,0.00024873,2]
[392150925,1761214238458,-500.0,0.00024873,2]
[392150927,1761214238467,-500.0,0.00024873,2]
[392150929,1761214238477,-500.0,0.00024873,2]
[392150931,1761214238487,-500.0,0.00024873,2]
[392150932,1761214238496,-500.0,0.00024873,2]
[392150934,1761214238505,-268.81353123,0.00024873,2]
[392150936,1761214238514,-500.0,0.00024873,2]
[392150938,1761214238525,-500.0,0.00024873,2]
[392150940,1761214238537,-500.0,0.00024873,2]
[392150942,1761214238548,-500.0,0.00024873,2]
[392150944,1761214238557,-500.0,0.00024873,2]
[392150946,1761214238567,-178.63746848,0.00024873,2]
[392150948,1761214238576,-459.60522028,0.00024889,2]
[392150950,1761214238587,-214.61694792,0.00024889,2]
[392150952,1761214238596,-20000.0,0.0002489,2]
[392150954,1761214238605,-370000.0,0.0002489,2]
[392150956,1761214238614,-500.0,0.0002489,2]
[392150958,1761214238624,-27170.86,0.000249,7]
[392150960,1761214238634,-456502.022351,0.000249,2]
[392150962,1761214238643,-500.0,0.00024973,2]
[392150964,1761214238652,-500.0,0.00024973,2]
[392150966,1761214238662,-500.48425532,0.00024973,2]
[392150968,1761214238671,-500.0,0.00024973,2]
[392150970,1761214238680,-165.66082903,0.00024973,2]
[392150972,1761214238690,-500.0,0.00024973,2]
[392150974,1761214238699,-500.39457438,0.00024973,2]
[392150976,1761214238708,-500.0,0.00024973,2]
[392150978,1761214238717,-500.0,0.00024973,2]
[392150980,1761214238726,-500.0,0.00024973,2]
[392150982,1761214238735,-500.0,0.00024973,2]
[392150984,1761214238745,-151.0,0.0002498,2]
[392150985,1761214238754,-500.0,0.0002498,2]
[392150987,1761214238763,-151.0,0.0002498,2]
[392150989,1761214238772,-151.23942676,0.0002498,2]
[392150991,1761214238782,-154.72642015,0.0002498,2]
[392150993,1761214238792,-151.0,0.0002498,2]
[392150995,1761214238801,-151.0,0.0002498,2]
[392150997,1761214238811,-172.66492286,0.0002498,2]
[392150999,1761214238820,-1005.27,0.00024988,2]
[392151001,1761214238830,-573.28776548,0.00024989,2]
[392151003,1761214238839,-500.0,0.00024989,2]
[392151005,1761214238848,-500.0,0.00024989,2]
[392151007,1761214238858,-500.0,0.00024989,2]
[392151009,1761214238867,-500.0,0.00024989,2]
[392151011,1761214238876,-1005.27,0.00024989,2]
[392151013,1761214238886,-1005.27,0.00024989,2]
[392151015,1761214238896,-1005.27,0.00024989,2]
[392151017,1761214238906,-1005.27,0.00024989,2]
[392151019,1761214238916,-151.0,0.00025035,2]
[392151021,1761214238926,-500.0,0.00025035,2]
[392151023,1761214238935,-151.0,0.00025035,2]
[392151025,1761214238945,-151.0,0.00025035,2]
[392151027,1761214238955,-1180.35418064,0.00025051,3]
[392151029,1761214238965,-265.69047996,0.0002509,2]
[392151031,1761214238975,-156.18914163,0.0002509,2]
[392151033,1761214238985,-151.0,0.0002509,2]